Cogmind - Beta 12 @@@ ROGUE MODE // 2023.11.04 @ 11:11:31 Player: PionFour Result: Destroyed by G-47 Trooper with Particle Gun Performance ------------- Evolutions (2) 1000 Regions Visited (6) 1200 Robots Destroyed (39) 195 Value Destroyed (831) 831 Prototype IDs (6) 120 Alien Tech Used (0) 0 Bonus (200) 200 TOTAL SCORE: 3546 Bonus ------- Entered Garrisons 200 Cogmind --------- Core Integrity 0/550 Matter 290/300 Energy 94/100 System Corruption 5% Temperature Cool (27) Movement Core (150) Ox2 Location -8/Garrison Parts ------- > --- POWER (1) -------- (None) > --- PROPULSION (3) --- (None) > --- UTILITY (5) ------ Improved Heat Sink Small Storage Unit Weapon Shielding Hacking Suite > --- WEAPON (2) ------- (None) > --- INVENTORY (8) ---- Light Nuclear Core Armored Wheel Medium Storage Unit Machine Analyzer Sensor Array Melee Analysis Suite Datajack Blade Saw Peak State ------------ > --- POWER ------------ Light Nuclear Core > --- PROPULSION ------- Wheel Wheel Wheel > --- UTILITY ---------- Improved Heat Sink Medium Storage Unit Signal Interpreter Weapon Shielding Hacking Suite > --- WEAPON ----------- Beam Rifle Particle Gun > --- INVENTORY -------- Light Ion Engine Wheel Improved Heat Sink Machine Analyzer Sensor Array Improved Terrain Scanner Terrain Scan Processor Melee Analysis Suite Weapon Shielding Datajack [Rating: 20] Favorites ----------- Power Ion Engine Engine Ion Engine Power Core Light Nuclear Core Propulsion Wheel Treads Light Treads Leg Aluminum Leg Wheel Wheel Flight Unit Surge Thruster Utility Medium Storage Unit Device Improved Terrain Scanner Storage Medium Storage Unit Processor Signal Interpreter Hackware Hacking Suite Protection Weapon Shielding Weapon Medium Laser Energy Gun Medium Laser Ballistic Gun Light Assault Rifle Launcher Rocket Launcher Special Melee Weapon Datajack Build | -11 -10 -10 -10 -9 -8 -8 ------- Run | Jun Mat Min Exi Min Mat Gar Slots Evolved 4 | . . . . . 4 . Power . | . . . . . . . Propulsion 1 | . . . . . 1 . Utility 3 | . . . . . 3 . Weapon . | . . . . . . . Parts Attached 54 | 3 4 7 5 10 16 9 Power 5 | . . 2 . 1 1 1 Engine 4 | . . 2 . 1 . 1 Core 1 | . . . . . 1 . Reactor . | . . . . . . . Propulsion 15 | 2 . 2 . 2 3 6 Treads 2 | 2 . . . . . . Leg 1 | . . . . . . 1 Wheel 11 | . . 2 . 2 3 4 Hover . | . . . . . . . Flight 1 | . . . . . . 1 Utility 21 | 1 3 2 3 1 9 2 Device 12 | 1 2 2 1 1 4 1 Storage 5 | . 1 . 2 . 2 . Processor 1 | . . . . . 1 . Hackware 1 | . . . . . 1 . Protection 2 | . . . . . 1 1 Artifact . | . . . . . . . Weapon 13 | . 1 1 2 6 3 . Energy Gun 8 | . 1 1 1 3 2 . Energy Cannon . | . . . . . . . Ballistic Gun . | . . . . . . . Ballistic Cannon . | . . . . . . . Launcher 3 | . . . . 2 1 . Special Weapon . | . . . . . . . Impact Weapon . | . . . . . . . Slashing Weapon . | . . . . . . . Piercing Weapon . | . . . . . . . Special Melee Weapon 2 | . . . 1 1 . . Unidentified Prototypes . | . . . . . . . Parts Lost 14 | . . 1 . 2 1 10 Power 2 | . . 1 . . . 1 Propulsion 6 | . . . . 1 . 5 Utility 2 | . . . . . . 2 Weapon 4 | . . . . 1 1 2 Highest Loss Streak 6 | . . 1 . 2 1 6 To Critical Strikes . | . . . . . . . Average Slot Usage (%) 94 | . 100 99 92 99 100 79 Engine 10 | . 14 14 14 14 3 . Core 1 | . . . . . 5 8 Treads 11 | . 28 20 . . . . Wheel 15 | . . 6 28 27 27 23 Device 13 | . 14 14 13 14 12 9 Storage 12 | . 14 14 14 14 9 9 Hackware 2 | . . . . . 8 9 Protection 2 | . . . . . 5 9 Energy Gun 17 | . 20 28 7 23 12 9 Ballistic Gun 2 | . 7 . . . . . Special Melee Weapon 3 | . . . 14 2 5 . Naked Turns . | . . . . . . . Heaviest Build 23 | 14 20 21 19 23 23 18 Greatest Support 40 | 40 40 40 20 20 30 36 Greatest Overweight (x) 2 | . . 1 . 1 . 2 Average Overweight (x) . | . . . . . . . Largest Inventory Capacity 35 | 8 10 10 35 10 10 8 Average Capacity 9 | 8 8 10 10 10 9 8 Most Carried 10 | 8 10 10 10 10 10 8 Average Carried 8 | 6 8 9 9 9 8 6 Final Capacity 10 | 8 10 10 10 10 8 8 Final Carried 10 | 8 10 10 10 9 8 8 Class Distribution -------------------- 63% | Scavenger-Mutant 36% | Mutant Dominant Class ---------------- Mutant | -10/Materials Scavenger-Mutant | -10/Mines Scavenger-Mutant | -10/Exiles Scavenger-Mutant | -9/Mines Scavenger-Mutant | -8/Materials Scavenger-Mutant | -8/Garrison Resources | -11 -10 -10 -10 -9 -8 -8 ----------- Run | Jun Mat Min Exi Min Mat Gar Matter Collected 775 | 220 63 84 . 152 139 117 Remotely . | . . . . . . . Salvage Created 1327 | 132 358 148 . 194 139 356 Parts 82 | 12 28 13 . 14 7 8 Haulers Intercepted 1 | . 1 . . . . . Recyclers Shooed . | . . . . . . . Parts Field Recycled . | . . . . . . . Retrieved Matter . | . . . . . . . Parts Self-Destructed . | . . . . . . . Prevented . | . . . . . . . Kills | -11 -10 -10 -10 -9 -8 -8 ------- Run | Jun Mat Min Exi Min Mat Gar Combat Hostiles Destroyed 24 | . 9 4 . 5 2 4 Guns 23 | . 9 3 . 5 2 4 Classes Destroyed 12 | 2 6 1 . . 1 2 Worker 3 | . . 1 . 1 1 . Builder 1 | . 1 . . . . . Tunneler 3 | 2 . 1 . . . . Hauler 1 | . 1 . . . . . Recycler 2 | 1 . . . 1 . . Mechanic 1 | . . . . . 1 . Operator 1 | . 1 . . . . . Watcher 3 | . 3 . . . . . Swarmer 9 | . 4 2 . 3 . . Grunt 13 | . 5 2 . 2 2 2 Brawler 1 | . . . . . . 1 Sentry 1 | . . . . . . 1 Best Kill Streak 3 | 2 3 2 . 3 3 2 Combat Bots Only 3 | . 3 2 . 3 2 2 Max Kills in Single Turn 2 | 1 1 1 . 2 2 1 Gunslinging . | . . . . . . . Exploded . | . . . . . . . Melee . | . . . . . . . Uniques/NPCs Destroyed . | . . . . . . . Combat | -11 -10 -10 -10 -9 -8 -8 -------- Run | Jun Mat Min Exi Min Mat Gar Damage Taken 2293 | . 361 198 . 389 177 1168 Core 766 | . 84 37 . 89 14 542 Absorbed by Shields 7 | . . . . . . 7 Redirected to Shielding 57 | . . . . . 24 33 Regen/Repaired (Parts) 13 | . 13 . . . . . Core Remaining (%) 58 | 100 . . . 16 . . Volleys Fired 163 | 5 47 17 . 20 9 65 Largest 2 | 2 2 2 . 2 2 2 Hottest 121 | 70 100 115 . 121 121 121 Shots Fired 254 | 10 90 34 . 28 15 77 Gun 252 | 10 90 34 . 27 14 77 Cannon . | . . . . . . . Launcher 2 | . . . . 1 1 . Special . | . . . . . . . Kinetic 23 | 5 18 . . . . . Thermal 229 | 5 72 34 . 27 14 77 Explosive 2 | . . . . 1 1 . Electromagnetic . | . . . . . . . Robot Hit Streak 35 | 3 8 9 . 4 6 35 Robot Miss Streak 6 | 1 5 6 . 3 3 2 Penetration Max . | . . . . . . . Secondary Targets 5 | . 1 1 . 3 . . Max Gunslinging Chain 1 | . 1 1 . 1 . . Shots Hit Robots 170 | 6 51 21 . 18 11 63 Core Hits 69 | 5 23 9 . 9 6 17 Critical Kills . | . . . . . . . Critical Parts Destroyed . | . . . . . . . Critical Strikes 15 | 1 2 3 . 1 . 8 Burn 15 | 1 2 3 . 1 . 8 Melee Attacks 3 | . . . . 1 2 . Impact . | . . . . . . . Slashing . | . . . . . . . Piercing . | . . . . . . . Sneak Attacks 3 | . . . . 1 2 . Combat Hostiles . | . . . . . . . Follow-up Attacks . | . . . . . . . Damage Inflicted 2463 | 73 602 285 . 364 201 938 Guns 2301 | 73 602 282 . 263 154 927 Cannons . | . . . . . . . Explosions 148 | . . . . 101 47 . Melee . | . . . . . . . Ramming 14 | . . 3 . . . 11 Kinetic 102 | 22 80 . . . . . Thermal 2199 | 51 522 282 . 263 154 927 Explosive 148 | . . . . 101 47 . Electromagnetic . | . . . . . . . Impact . | . . . . . . . Slashing . | . . . . . . . Piercing . | . . . . . . . Highest Corruption 5 | . 2 2 2 2 . 5 Average Corruption 2 | . 1 2 2 2 . 5 Corruption Purged . | . . . . . . . Corruption Blocked . | . . . . . . . Effects 29 | . 3 6 6 3 . 11 Message Errors 8 | . 1 2 . 2 . 3 Matter Fused 9 | . . 2 3 1 . 3 Heat Flow Errors 5 | . . . 1 . . 4 Energy Discharges 4 | . 2 1 1 . . . Parts Fused 1 | . . 1 . . . . Data Loss (minor) 1 | . . . 1 . . . Weapon Failures 1 | . . . . . . 1 Overload Shots . | . . . . . . . Overflow Damage 9 | . . . . . 9 . Projectiles . | . . . . . . . Explosions 9 | . . . . . 9 . Melee . | . . . . . . . Knockbacks . | . . . . . . . Impact . | . . . . . . . Kinetic . | . . . . . . . Secondary . | . . . . . . . Self-Inflicted Damage 92 | . . . . 46 41 5 Shots 2 | . . . . 1 1 . Rammed 7 | . 1 1 . . . 5 Targets Rammed 7 | . 1 1 . . . 5 Kicked . | . . . . . . . Crushed . | . . . . . . . Highest Temperature 328 | 60 186 216 165 328 163 226 Average Temperature 77 | 28 47 61 85 144 90 93 Received Heat Transfer 960 | . 138 87 . 141 99 495 Siege Activations . | . . . . . . . Robots Corrupted . | . . . . . . . Combat Hostiles . | . . . . . . . Parts Fried . | . . . . . . . Impact Corruptions . | . . . . . . . Robots Melted 2 | . . 1 . . . 1 Combat Hostiles 1 | . . 1 . . . . Parts Melted 9 | 1 6 . . . . 2 Heat Transferred 6946 | 222 1702 999 . 740 370 2913 Parts Sabotaged . | . . . . . . . Parts Stolen . | . . . . . . . Parts Stripped . | . . . . . . . Power Chain Reactions . | . . . . . . . Missiles Intercepted . | . . . . . . . Alert | -11 -10 -10 -10 -9 -8 -8 ------- Run | Jun Mat Min Exi Min Mat Gar Peak Influence 226 | 15 171 116 . 226 167 193 Initial 108 | . 9 66 . . 87 108 Average 105 | 8 86 91 . 146 117 137 Maximum Alert Level 1 | . . . . 1 . . Low Security (%) 98 | 100 100 100 . 88 100 100 Level 1 1 | . . . . 11 . . Level 2 . | . . . . . . . Level 3 . | . . . . . . . Level 4 . | . . . . . . . Level 5 . | . . . . . . . High Security . | . . . . . . . Max Security . | . . . . . . . Squads Dispatched 2 | . 1 . . . 1 . Investigation 2 | . 1 . . . 1 . Extermination . | . . . . . . . Reinforcement . | . . . . . . . Assault . | . . . . . . . Garrison . | . . . . . . . Intercept . | . . . . . . . Searches Triggered . | . . . . . . . Construction Impeded . | . . . . . . . Haulers Reinforced . | . . . . . . . Active Scanning Responses . | . . . . . . . Cargo Convoy Interrupts . | . . . . . . . Stealth | -11 -10 -10 -10 -9 -8 -8 --------- Run | Jun Mat Min Exi Min Mat Gar Distress Signals 1 | . 1 . . . . . Communications Jammed . | . . . . . . . Distress Signals . | . . . . . . . Times Spotted 51 | . 15 5 . 10 4 17 Peak Tracking Total 12 | . 5 3 . 4 3 12 Tactical Retreats 4 | . . 1 . 2 . 1 Traps | -11 -10 -10 -10 -9 -8 -8 ------- Run | Jun Mat Min Exi Min Mat Gar Traps Triggered 4 | . 2 . . . . 2 Indirectly . | . . . . . . . Trap Hack Attempts . | . . . . . . . Triggered . | . . . . . . . Disarmed . | . . . . . . . Reprogrammed . | . . . . . . . Reused . | . . . . . . . Traps Extracted . | . . . . . . . Installed 1 | . . . . 1 . . Triggered . | . . . . . . . Machines | -11 -10 -10 -10 -9 -8 -8 ---------- Run | Jun Mat Min Exi Min Mat Gar Machines Disabled 3 | . 1 . . 1 1 . Max in Single Turn 1 | . 1 . . 1 1 . Machines Repaired . | . . . . . . . Machines Sabotaged . | . . . . . . . Overloaded Fab Kills . | . . . . . . . Hacking | -11 -10 -10 -10 -9 -8 -8 --------- Run | Jun Mat Min Exi Min Mat Gar Machines Accessed 15 | . 6 . 4 1 4 . Terminals 7 | . 4 . . 1 2 . Fabricators . | . . . . . . . Repair Stations 1 | . 1 . . . . . Recycling Units 2 | . 1 . . . 1 . Scanalyzers . | . . . . . . . Garrison Access 1 | . . . . . 1 . Total Hacks 35 | . 17 . 4 4 10 . Successful 22 | . 11 . 4 2 5 . Failed 13 | . 6 . . 2 5 . Catastrophic 1 | . 1 . . . . . Database Lockouts . | . . . . . . . Manual 20 | . 10 . . 4 6 . Terminals 24 | . 13 . . 4 7 . Fabricators . | . . . . . . . Repair Stations 2 | . 2 . . . . . Recycling Units 4 | . 2 . . . 2 . Scanalyzers . | . . . . . . . Garrison Access 1 | . . . . . 1 . Terminal Hacks 10 | . 4 . 4 2 . . Record 4 | . . . 4 . . . Prototype ID Bank 2 | . 1 . . 1 . . Level Access Points 1 | . . . . 1 . . Alert Level 1 | . 1 . . . . . Transport Status 1 | . 1 . . . . . Registered Components 1 | . 1 . . . . . Fabricator Hacks . | . . . . . . . Repair Station Hacks 2 | . 2 . . . . . Scan Component 1 | . 1 . . . . . Repair 1 | . 1 . . . . . Recycling Unit Hacks 2 | . 1 . . . 1 . Report Inventory 2 | . 1 . . . 1 . Scanalyzer . | . . . . . . . Garrison Access Hacks 1 | . . . . . 1 . Unlock Access 1 | . . . . . 1 . Unauthorized Hacks 7 | . 4 . . . 3 . Terminals 5 | . 3 . . . 2 . Botnet 5 | . 3 . . . 2 . Fabricators . | . . . . . . . Repair Stations . | . . . . . . . Recycling Units 2 | . 1 . . . 1 . Monitor 2 | . 1 . . . 1 . Scanalyzers . | . . . . . . . Garrison Access . | . . . . . . . Data Cores Recovered . | . . . . . . . Used . | . . . . . . . Hacking Detections 5 | . 3 . . . 2 . Full Trace Events 2 | . 1 . . . 1 . Feedback Events . | . . . . . . . Feedback Blocked . | . . . . . . . Robot Schematics Acquired . | . . . . . . . Robots Built . | . . . . . . . Authchips . | . . . . . . . Time . | . . . . . . . Total Robot Build Rating . | . . . . . . . Part Schematics Acquired . | . . . . . . . Parts Built . | . . . . . . . Authchips . | . . . . . . . Time . | . . . . . . . Total Part Build Rating . | . . . . . . . Parts Repaired 1 | . 1 . . . . . Time 26 | . 26 . . . . . Parts Recycled . | . . . . . . . Recycled Matter . | . . . . . . . Retrieved Matter . | . . . . . . . Retrieved Components . | . . . . . . . Parts Scanalyzed . | . . . . . . . Part Schematics Acquired . | . . . . . . . Parts Damaged . | . . . . . . . Bothacking | -11 -10 -10 -10 -9 -8 -8 ------------ Run | Jun Mat Min Exi Min Mat Gar Used RIF Installer . | . . . . . . . Robots Hacked 2 | . . . . 1 1 . Non-combat 1 | . . . . . 1 . Combat 1 | . . . . 1 . . Robot Hacks Applied 3 | . . . . 1 2 . parse_system 1 | . . . . 1 . . no_distress 1 | . . . . . 1 . find_station 1 | . . . . . 1 . Relay Couplers Released . | . . . . . . . Fabnet Peak Effective % . | . . . . . . . Robots Rewired . | . . . . . . . Allies Hacked . | . . . . . . . Hacks Repelled . | . . . . . . . Allies | -11 -10 -10 -10 -9 -8 -8 -------- Run | Jun Mat Min Exi Min Mat Gar Total Allies . | . . . . . . . Largest Group . | . . . . . . . Highest-Rated Group . | . . . . . . . Highest-Rated Ally . | . . . . . . . Total Orders . | . . . . . . . Ally Attacks . | . . . . . . . Total Damage . | . . . . . . . Kills . | . . . . . . . Allies Corrupted . | . . . . . . . Allies Melted . | . . . . . . . Intel | -11 -10 -10 -10 -9 -8 -8 ------- Run | Jun Mat Min Exi Min Mat Gar Robot Analysis Total . | . . . . . . . Derelict Logs Recovered 2 | . . 1 . 1 . . Drone Launches . | . . . . . . . Drone Recoveries . | . . . . . . . Exploration | -11 -10 -10 -10 -9 -8 -8 ------------- Run | Jun Mat Min Exi Min Mat Gar Turns Passed 2679 | 67 730 489 510 253 197 433 Spaces Moved 1802 | 28 333 302 610 204 149 176 Core 2 | . . . . . . 2 Treads 536 | 4 333 199 . . . . Legs 24 | 24 . . . . . . Wheels 1240 | . . 103 610 204 149 174 Hover . | . . . . . . . Flight . | . . . . . . . Fastest Speed 80 | 120 160 95 80 80 80 80 Average Speed 107 | 125 160 137 80 88 80 88 Slowest Speed 160 | 160 160 160 80 95 80 150 Overloaded Moves . | . . . . . . . Propulsion Burnouts . | . . . . . . . Robots Hopped . | . . . . . . . Cave-ins Triggered . | . . . . . . . Exploration Rate (%) 41 | 3 50 66 93 40 19 21 Regions Visited 6 Branch Regions 3 Pre-discovered Areas 1 | . . . . 1 . . Known Exits Taken 2 | . . . . 1 1 . Unknown Exits Taken 4 | 1 1 1 1 . . . Scrap Searched 1 | . . . . 1 . . Spaces Dug . | . . . . . . . Terrain Destroyed 11 | . . . . 11 . . Melee . | . . . . . . . Projectile . | . . . . . . . AOE 11 | . . . . 11 . . Terrain Rammed . | . . . . . . . Walls Destroyed . | . . . . . . . Machines Disabled . | . . . . . . . Actions | -11 -10 -10 -10 -9 -8 -8 --------- Run | Jun Mat Min Exi Min Mat Gar Total 2299 | 51 444 340 635 244 210 375 Wait 184 | 8 47 5 . 4 20 100 Move 1796 | 27 332 301 609 203 148 176 Hop . | . . . . . . . Pick Up 47 | 5 8 4 11 2 8 9 Fast Attach 6 | 1 . 1 2 1 . 1 Attach 18 | . . 2 2 2 5 7 Detach . | . . . . . . . Swap 30 | 2 4 4 1 7 11 1 Drop 37 | 3 5 5 10 3 7 4 Fire 163 | 5 47 17 . 20 9 65 Melee 3 | . . . . 1 2 . Ram 5 | . . . . . . 5 Kick . | . . . . . . . Crush 2 | . 1 1 . . . . Escape Stasis 7 | . . . . . . 7 Rewire . | . . . . . . . Trap 1 | . . . . 1 . . Miscellaneous . | . . . . . . . Route ------- -11/Junkyard -10/Materials -10/Mines (discovered 3 exits: [*Mat x2] / *Exi) -10/Exiles (discovered 2 exits: *Min x2) -9/Mines (discovered 2 exits: *Mat x2) -8/Materials -8/Garrison History --------- Turn | Location | Event 1 | -11/Junkyard | Discovered new exit (range 3) 68 | -11/Junkyard | Entered Materials 296 | -10/Materials | Discovered new exit (range 12) 311 | -10/Materials | Build established: Mutant 443 | -10/Materials | Repaired Seismic Detector 798 | -10/Materials | Entered Mines 912 | -10/Mines | Discovered new exit (range 7) 920 | -10/Mines | Received a Rocket Launcher from a helpful Derelict 931 | -10/Mines | Discovered new exit (range 6) 1004 | -10/Mines | Learned Materials emergency access door positions 1129 | -10/Mines | Deemed a non-threat by the Exiles lab entrance 1129 | -10/Mines | Discovered new exit (range 5) 1151 | -10/Mines | Build established: Scavenger-Mutant 1287 | -10/Mines | Entered Exiles 1287 | -10/Exiles | Found Exiles lab abandoned 1310 | -10/Exiles | Discovered new exit (range 15) 1788 | -10/Exiles | Discovered new exit (range 14) 1797 | -10/Exiles | Entered Mines 1799 | -9/Mines | Core integrity fell below 50% 1845 | -9/Mines | Identified exit to Materials 1872 | -9/Mines | Core integrity fell below 20% 1888 | -9/Mines | Learned location of Storage (-8) 2014 | -9/Mines | YI-UF0 nonchalantly dropped a Grenade Launcher on the ground 2028 | -9/Mines | Found a hidden stash of uninstalled traps 2048 | -9/Mines | Received a Mining Laser from a helpful Derelict 2050 | -9/Mines | Entered Materials 2050 | -8/Materials | Evolved 4 slots: Propulsion x1, Utility x3 2230 | -8/Materials | Identified exit to Garrison 2247 | -8/Materials | Entered Garrison 2276 | -8/Garrison | Triggered checkpoint 2396 | -8/Garrison | Lost 6 parts (3n2u1w) 2658 | -8/Garrison | Triggered checkpoint 2667 | -8/Garrison | Core integrity fell below 50% 2678 | -8/Garrison | Core integrity fell below 20% 2680 | -8/Garrison | Destroyed by G-47 Trooper with Particle Gun Last Messages --------------- 02663_ Slammed into C-17 Slicer. 02665_ Imp. Ion Engine severed. 02666_ C-30 ARC bursts open, deploying its payload. 02666_ G-50 Soldier unfolds itself. 02666_ G-47 Trooper unfolds itself. 02668_ Arm. Wheel severed. 02668_ Arm. Wheel destroyed. 02668_ Slammed into C-17 Slicer. 02668_ Imp. Heat Sink broken. 02668_ Destabilizing: Short circuit. Garrison Door activated. 02669_ C-17 Slicer destroyed. 02670_ Acquired Blade Saw. 02671_ Critical hit (Burn: +37). 02673_ Dropped Arm. Wheel. 02674_ Arm. Wheel destroyed. 02675_ Acquired Lgt. Nuclear Core. 02677_ Acquired Surge Thruster. 02677_ C-17 Slicer destroyed. 02678_ Surge Thruster severed. Map ----- +----------------------------------------------------+ | ???????????????# #????????????????????????????? | | ???????????????# #????????????????????????????? | | ???????????????### #????????????????????????????? | | ?????????????????# #????????????????????????????? | | ?????????????????# #????????????????????????????? | | ?????????????????# #????????????????????????????? | | ??################ #????????????????????????????? | | ??# %! ########?????????????????????? | | ??# ##+#####+##### #?????????????????????? | | ??# #????????????# % % #?????????????????????? | | ??# #????????????######## #?????????????????????? | | ??#%#???????????????????# #?????????????????????? | | ### +???????????????????# #?????????????????????? | | #"%"#???????????????????# #?????????????????????? | | #%==#???????????????????# #?????????????????????? | | # % #???????????????????# #??####???????????????? | | ### #???????????????????# g#? "%"#?? #???????????? | | ??# ###????????????????## ## " ## ##??????????? | | ??# #"#???????????# #### #??????????? | | ??# "#???????????# %g #??????????? | | ??# "#???????????######* #??????????? | | ??# "#????????????????# g## ## #??????????? | | ??# #"#??????????????###=gg## ## ##?????????? | | ??#####??????????????#%=*c%! g #????????? | | ?????????????????????#=%=*%= g #????????? | | ?????????????????????#%=[@ #????????? | | ?????????????????????#=% g #????????? | | ?????????????????????### ## ## ###????????? | | ???????????????????????# #? #? #??????????? | | ??????????????????????? g ? ??????????? | | ?????????????????????? ? ??????????? | | ????????????????????? #??????????? | | ?????????????????????########" ######??????????? | | ??????????????????????????????? #???????????????? | | ???????????????????????????????###???????????????? | | ?????????????????????????????????????????????????? | | ?????????????????????????????????????????????????? | | ?????????????????????????????????????????????????? | | ?????????????????????????????????????????????????? | | ?????????????????????????????????????????????????? | | ?????????????????????????????????????????????????? | | ?????????????????????????????????????????????????? | | ?????????????????????????????????????????????????? | | ?????????????????????????????????????????????????? | | ?????????????????????????????????????????????????? | | ?????????????????????????????????????????????????? | | ?????????????????????????????????????????????????? | | ?????????????????????????????????????????????????? | | ?????????????????????????????????????????????????? | | ?????????????????????????????????????????????????? | +----------------------------------------------------+ Best States ------------- Heat Dissipation 59 Energy Generation 14 Energy Capacity 265 Matter Stores 300 Matter Capacity 300 Sight Range 16 Robot Scan Range 14 Terrain Scan Range 16 Terrain Scan Density 10 Weapon Shielding 33 Evasion (%) 55 Recoil Reduction 2 Offensive Hacking 10 Item Schematics ----------------- None Robot Schematics ------------------ None Fabricated ------------ Nothing Alien Tech Used ----------------- None Achievements -------------- None Challenges ------------ None Game ------ Seed DataShockBoomstick Manual? 0 Play Time 00:51:23 Cumulative 183.6 hours Start 2023.10.31 @ 10:57:45 End 2023.11.04 @ 11:11:31 Sessions 3 Manual Loads 0 Difficulty Rogue Special Mode None Game No. 33 Rogue 19 Adventurer 11 Explorer 3 Win Type - Total 5 Types 5/0/0/0/0/0/0/0/0 Lore% 49 Gallery% 76 Achievement% 62 Wizard Run 0 Options --------- ASCII 0 Keyboard 0 Movement Mouse Keybinds 0 Fullscreen 2 Font 18/SmallcapsGlow Map View 76x50 Tactical HUD 1 Map Filters NONE Filters NONE Steam 1 RUN: f73378f5-4565-48b3-bcbe-41285bbc26da